fUST/lending_fUST_20260526
["ID","MTS","AMOUNT","RATE_DAILY","PERIOD"]
[423000564,1779736243000,-8769.42,8.493e-05,2]
[423000555,1779736243000,-1750.58,8.493e-05,2]
[423000554,1779736243000,-2827.8,8.493e-05,2]
[423000552,1779736243000,-500.0,8.493e-05,2]
[423000548,1779736243000,-633.38,8.493e-05,2]
[423000572,1779736243000,-500.0,8.493e-05,2]
[423000573,1779736243000,-1148.8,8.493e-05,2]
[423000563,1779736243000,-3626.12,8.493e-05,2]
[423000577,1779736243000,-500.0,8.493e-05,2]
[423000567,1779736243000,-500.0,8.493e-05,2]
[423000568,1779736243000,-500.0,8.493e-05,2]
[423000561,1779736243000,-3155.18,8.493e-05,2]
[423000566,1779736243000,-526.02,8.493e-05,2]
[423000560,1779736243000,-2295.01,8.493e-05,2]
[423000559,1779736243000,-800.91,8.493e-05,2]
[423000556,1779736243000,-500.0,8.493e-05,2]
[423000558,1779736243000,-554.25,8.493e-05,2]
[423000562,1779736243000,-6163.87,8.493e-05,2]
[423000557,1779736243000,-156.2065752,8.493e-05,2]
[423000646,1779736244000,-778.66,8.767e-05,2]
[423000654,1779736244000,-2270.08,8.767e-05,2]
[423000649,1779736244000,-500.0,8.767e-05,2]
[423000650,1779736244000,-500.0,8.767e-05,2]
[423000653,1779736244000,-500.0,8.767e-05,2]
[423000656,1779736244000,-500.0,8.767e-05,2]
[423000645,1779736244000,-683.75,8.767e-05,2]
[423000644,1779736244000,-1184.04,8.767e-05,2]
[423000648,1779736244000,-1439.16,8.767e-05,2]
[423000655,1779736244000,-2687.34,8.767e-05,2]
[423000652,1779736244000,-500.0,8.767e-05,2]
[423000651,1779736244000,-500.0,8.767e-05,2]
[423000647,1779736244000,-347.44845994,8.767e-05,2]
[423000658,1779736244000,-619.89,8.767e-05,2]
[423000683,1779736244000,-500.0,8.767e-05,2]
[423000668,1779736244000,-500.0,8.767e-05,2]
[423000659,1779736244000,-500.0,8.767e-05,2]
[423000657,1779736244000,-546.67,8.767e-05,2]
[423000660,1779736244000,-564.01,8.767e-05,2]
[423000669,1779736244000,-500.0,8.767e-05,2]
[423000663,1779736244000,-886.37,8.767e-05,2]
[423000661,1779736244000,-500.0,8.767e-05,2]
[423000666,1779736244000,-500.0,8.767e-05,2]
[423000667,1779736244000,-1490.73,8.767e-05,2]
[423000662,1779736244000,-2034.88,8.767e-05,2]
[423000665,1779736244000,-500.0,8.767e-05,2]
[423000664,1779736244000,-500.0,8.767e-05,2]
[423000671,1779736244000,-1388.62,8.767e-05,2]
[423000638,1779736244000,-572.09,8.767e-05,2]
[423000682,1779736244000,-718.08,8.767e-05,2]
[423000636,1779736244000,-500.0,8.767e-05,2]
[423000610,1779736244000,-500.0,8.767e-05,2]
[423000637,1779736244000,-500.0,8.767e-05,2]
[423000617,1779736244000,-500.0,8.767e-05,2]
[423000611,1779736244000,-730.66,8.767e-05,2]
[423000615,1779736244000,-500.0,8.767e-05,2]
[423000613,1779736244000,-1439.59,8.767e-05,2]
[423000612,1779736244000,-500.0,8.767e-05,2]
[423000614,1779736244000,-642.86,8.767e-05,2]
[423000616,1779736244000,-1507.02,8.767e-05,2]
[423000619,1779736244000,-500.0,8.767e-05,2]
[423000618,1779736244000,-500.0,8.767e-05,2]
[423000628,1779736244000,-500.0,8.767e-05,2]
[423000627,1779736244000,-500.0,8.767e-05,2]
[423000621,1779736244000,-500.0,8.767e-05,2]
[423000629,1779736244000,-871.63,8.767e-05,2]
[423000620,1779736244000,-526.95,8.767e-05,2]
[423000630,1779736244000,-500.0,8.767e-05,2]
[423000622,1779736244000,-500.0,8.767e-05,2]
[423000625,1779736244000,-500.0,8.767e-05,2]
[423000624,1779736244000,-500.0,8.767e-05,2]
[423000623,1779736244000,-500.0,8.767e-05,2]
[423000626,1779736244000,-2766.3961,8.767e-05,2]
[423000632,1779736244000,-500.0,8.767e-05,2]
[423000642,1779736244000,-367.84821196,8.767e-05,2]
[423000643,1779736244000,-2024.18,8.767e-05,2]
[423000631,1779736244000,-993.56,8.767e-05,2]
[423000633,1779736244000,-500.0,8.767e-05,2]
[423000634,1779736244000,-500.0,8.767e-05,2]
[423000635,1779736244000,-500.0,8.767e-05,2]
[423000640,1779736244000,-999.61,8.767e-05,2]
[423000639,1779736244000,-500.0,8.767e-05,2]
[423000641,1779736244000,-1136.49,8.767e-05,2]
[423000681,1779736244000,-500.0,8.767e-05,2]
[423000694,1779736244000,-500.0,8.767e-05,2]
[423000679,1779736244000,-500.0,8.767e-05,2]
[423000715,1779736244000,-500.0,8.767e-05,2]
[423000711,1779736244000,-500.0,8.767e-05,2]
[423000713,1779736244000,-1946.81,8.767e-05,2]
[423000714,1779736244000,-6854.03,8.767e-05,2]
[423000720,1779736244000,-1858.99,8.767e-05,2]
[423000712,1779736244000,-431.89249027,8.767e-05,2]
[423000719,1779736244000,-585.21612089,8.767e-05,2]
[423000718,1779736244000,-4134.83,8.767e-05,2]
[423000717,1779736244000,-500.0,8.767e-05,2]
[423000721,1779736244000,-500.0,8.767e-05,2]
[423000722,1779736244000,-500.0,8.767e-05,2]
[423000716,1779736244000,-747.78,8.767e-05,2]
[423000725,1779736244000,-500.0,8.767e-05,2]
[423000723,1779736244000,-2922.24,8.767e-05,2]
[423000732,1779736244000,-1646.59,8.767e-05,2]
[423000735,1779736244000,-8849.36,8.767e-05,2]
[423000733,1779736244000,-1002.27,8.767e-05,2]
[423000727,1779736244000,-531.05,8.767e-05,2]
[423000726,1779736244000,-500.0,8.767e-05,2]
[423000724,1779736244000,-596.03,8.767e-05,2]
[423000731,1779736244000,-500.0,8.767e-05,2]
[423000730,1779736244000,-500.0,8.767e-05,2]
[423000728,1779736244000,-1137.29,8.767e-05,2]
[423000734,1779736244000,-633.38,8.767e-05,2]
[423000729,1779736244000,-500.0,8.767e-05,2]
[423000737,1779736244000,-3004.37,8.767e-05,2]
[423000738,1779736244000,-500.0,8.767e-05,2]
[423000736,1779736244000,-500.0,8.767e-05,2]
[423000670,1779736244000,-500.0,8.767e-05,2]
[423000710,1779736244000,-500.0,8.767e-05,2]
[423000703,1779736244000,-4828.86,8.767e-05,2]
[423000689,1779736244000,-500.0,8.767e-05,2]
[423000704,1779736244000,-1225.23,8.767e-05,2]
[423000706,1779736244000,-1771.12,8.767e-05,2]
[423000672,1779736244000,-718.7,8.767e-05,2]
[423000676,1779736244000,-500.0,8.767e-05,2]
[423000677,1779736244000,-953.32,8.767e-05,2]
[423000674,1779736244000,-641.44,8.767e-05,2]
[423000678,1779736244000,-500.0,8.767e-05,2]
[423000680,1779736244000,-500.0,8.767e-05,2]
[423000685,1779736244000,-500.0,8.767e-05,2]
[423000684,1779736244000,-1890.83,8.767e-05,2]
[423000697,1779736244000,-2686.6,8.767e-05,2]
[423000695,1779736244000,-1322.11,8.767e-05,2]
[423000696,1779736244000,-591.23,8.767e-05,2]
[423000686,1779736244000,-500.0,8.767e-05,2]
[423000673,1779736244000,-500.0,8.767e-05,2]
[423000675,1779736244000,-500.0,8.767e-05,2]
[423000691,1779736244000,-500.0,8.767e-05,2]
[423000708,1779736244000,-667.09,8.767e-05,2]
[423000701,1779736244000,-500.0,8.767e-05,2]
[423000707,1779736244000,-1009.13,8.767e-05,2]
[423000702,1779736244000,-500.0,8.767e-05,2]
[423000693,1779736244000,-500.0,8.767e-05,2]
[423000700,1779736244000,-2731.12,8.767e-05,2]
[423000705,1779736244000,-500.0,8.767e-05,2]
[423000698,1779736244000,-5767.46,8.767e-05,2]
[423000699,1779736244000,-500.0,8.767e-05,2]
[423000688,1779736244000,-500.0,8.767e-05,2]
[423000692,1779736244000,-500.0,8.767e-05,2]
[423000690,1779736244000,-500.0,8.767e-05,2]
[423000687,1779736244000,-692.9101,8.767e-05,2]
[423000709,1779736244000,-1098.72,8.767e-05,2]
[423000778,1779736245000,-2561.68,8.767e-05,2]
[423000779,1779736245000,-500.0,8.767e-05,2]
[423000776,1779736245000,-800.15,8.767e-05,2]
[423000780,1779736245000,-695.74,8.767e-05,2]
[423000777,1779736245000,-500.0,8.767e-05,2]
[423000772,1779736245000,-500.0,8.767e-05,2]
[423000770,1779736245000,-2797.95,8.767e-05,2]
[423000774,1779736245000,-3943.56,8.767e-05,2]
[423000773,1779736245000,-653.19,8.767e-05,2]
[423000769,1779736245000,-1896.26,8.767e-05,2]
[423000783,1779736245000,-277796.53775039,8.849e-05,2]
[423000775,1779736245000,-4026.76,8.767e-05,2]
[423000782,1779736245000,-639.04797402,8.836e-05,2]
[423000789,1779736245000,-507.13,9.041e-05,2]
[423000784,1779736245000,-456.7200949,8.869e-05,2]
[423000786,1779736245000,-500.0,9.019e-05,2]
[423000788,1779736245000,-559.5825,9.041e-05,2]
[423000787,1779736245000,-537.6845,9.019e-05,2]
[423000791,1779736245000,-500.0,9.041e-05,2]
[423000790,1779736245000,-522.64727951,9.041e-05,2]
[423000792,1779736245000,-500.0,9.041e-05,2]
[423000793,1779736245000,-500.0,9.041e-05,2]
[423000794,1779736245000,-730.66,9.041e-05,2]
[423000796,1779736245000,-1439.59,9.041e-05,2]
[423000797,1779736245000,-642.86,9.041e-05,2]
[423000765,1779736245000,-500.0,8.767e-05,2]
[423000785,1779736245000,-1066.7059131,8.951e-05,2]
[423000763,1779736245000,-2442.15,8.767e-05,2]
[423000751,1779736245000,-526.02,8.767e-05,2]
[423000767,1779736245000,-2060.98,8.767e-05,2]
[423000746,1779736245000,-3155.18,8.767e-05,2]
[423000747,1779736245000,-6163.87,8.767e-05,2]
[423000748,1779736245000,-3626.12,8.767e-05,2]
[423000741,1779736245000,-1750.58,8.767e-05,2]
[423000743,1779736245000,-554.25,8.767e-05,2]
[423000739,1779736245000,-2877.52,8.767e-05,2]
[423000740,1779736245000,-2827.8,8.767e-05,2]
[423000744,1779736245000,-800.91,8.767e-05,2]
[423000745,1779736245000,-2295.01,8.767e-05,2]
[423000742,1779736245000,-500.0,8.767e-05,2]
[423000750,1779736245000,-1293.98,8.767e-05,2]
[423000749,1779736245000,-8769.42,8.767e-05,2]
[423000759,1779736245000,-392.86963807,8.767e-05,2]
[423000798,1779736245000,-500.0,9.041e-05,2]
[423000752,1779736245000,-602.21115187,8.767e-05,2]
[423000756,1779736245000,-3010.38,8.767e-05,2]
[423000757,1779736245000,-500.0,8.767e-05,2]
[423000761,1779736245000,-500.0,8.767e-05,2]
[423000760,1779736245000,-500.0,8.767e-05,2]
[423000755,1779736245000,-3009.2,8.767e-05,2]
[423000753,1779736245000,-500.0,8.767e-05,2]
[423000754,1779736245000,-6204.19,8.767e-05,2]
[423000758,1779736245000,-1148.8,8.767e-05,2]
[423000762,1779736245000,-500.0,8.767e-05,2]
[423000764,1779736245000,-47206.1,8.767e-05,2]
[423000766,1779736245000,-516.92,8.767e-05,2]
[423000771,1779736245000,-10364.13,8.767e-05,2]
[423000768,1779736245000,-500.0,8.767e-05,2]
[423000799,1779736245000,-1507.02,9.041e-05,2]
[423000781,1779736245000,-500.0,8.767e-05,2]
[423000795,1779736245000,-603.80782721,9.041e-05,2]
[423000844,1779736245000,-886.37,9.041e-05,2]
[423000845,1779736245000,-209.8944253,9.041e-05,2]
[423000835,1779736245000,-2270.08,9.041e-05,2]
[423000833,1779736245000,-500.0,9.041e-05,2]
[423000834,1779736245000,-500.0,9.041e-05,2]
[423000839,1779736245000,-619.89,9.041e-05,2]
[423000843,1779736245000,-2034.88,9.041e-05,2]
[423000836,1779736245000,-2687.34,9.041e-05,2]
[423000832,1779736245000,-485.65810546,9.041e-05,2]
[423000837,1779736245000,-500.0,9.041e-05,2]
[423000842,1779736245000,-500.0,9.041e-05,2]
[423000838,1779736245000,-546.67,9.041e-05,2]
[423000840,1779736245000,-500.0,9.041e-05,2]
[423000830,1779736245000,-500.0,9.041e-05,2]
[423000857,1779736245000,-500.0,9.041e-05,2]
[423000858,1779736245000,-500.0,9.041e-05,2]
[423000859,1779736245000,-953.32,9.041e-05,2]
[423000846,1779736245000,-500.0,9.041e-05,2]
[423000849,1779736245000,-1490.73,9.041e-05,2]
[423000850,1779736245000,-500.0,9.041e-05,2]
[423000853,1779736245000,-1388.62,9.041e-05,2]
[423000851,1779736245000,-500.0,9.041e-05,2]
[423000852,1779736245000,-500.0,9.041e-05,2]
[423000854,1779736245000,-718.7,9.041e-05,2]
[423000856,1779736245000,-641.44,9.041e-05,2]
[423000855,1779736245000,-500.0,9.041e-05,2]
[423000860,1779736245000,-500.0,9.041e-05,2]
[423000800,1779736245000,-500.0,9.041e-05,2]
[423000848,1779736245000,-500.0,9.041e-05,2]
[423000829,1779736245000,-1439.16,9.041e-05,2]
[423000841,1779736245000,-564.01,9.041e-05,2]
[423000831,1779736245000,-500.0,9.041e-05,2]
[423000828,1779736245000,-778.66,9.041e-05,2]
[423000801,1779736245000,-423.47863348,9.041e-05,2]
[423000804,1779736245000,-605.87,9.041e-05,2]
[423000805,1779736245000,-499.72099654,9.041e-05,2]
[423000802,1779736245000,-500.0,9.041e-05,2]
[423000807,1779736245000,-500.0,9.041e-05,2]
[423000819,1779736245000,-500.0,9.041e-05,2]
[423000818,1779736245000,-254.68062367,9.041e-05,2]
[423000817,1779736245000,-500.0,9.041e-05,2]
[423000815,1779736245000,-500.0,9.041e-05,2]
[423000806,1779736245000,-500.0,9.041e-05,2]
[423000808,1779736245000,-500.0,9.041e-05,2]
[423000813,1779736245000,-500.0,9.041e-05,2]
[423000812,1779736245000,-871.63,9.041e-05,2]
[423000803,1779736245000,-526.95,9.041e-05,2]
[423000811,1779736245000,-500.0,9.041e-05,2]
[423000824,1779736245000,-1136.49,9.041e-05,2]
[423000822,1779736245000,-500.0,9.041e-05,2]
[423000825,1779736245000,-2024.18,9.041e-05,2]
[423000821,1779736245000,-572.09,9.041e-05,2]
[423000826,1779736245000,-1184.04,9.041e-05,2]
[423000823,1779736245000,-999.61,9.041e-05,2]
[423000827,1779736245000,-683.75,9.041e-05,2]
[423000816,1779736245000,-500.0,9.041e-05,2]
[423000814,1779736245000,-993.56,9.041e-05,2]
[423000809,1779736245000,-2766.3961,9.041e-05,2]
[423000810,1779736245000,-500.0,9.041e-05,2]
[423000820,1779736245000,-500.0,9.041e-05,2]
[423000905,1779736246000,-596.03,9.041e-05,2]
[423000904,1779736246000,-2922.24,9.041e-05,2]
[423000901,1779736246000,-1858.99,9.041e-05,2]
[423000900,1779736246000,-4134.83,9.041e-05,2]
[423000902,1779736246000,-500.0,9.041e-05,2]
[423000903,1779736246000,-500.0,9.041e-05,2]
[423000897,1779736246000,-500.0,9.041e-05,2]
[423000887,1779736246000,-1225.23,9.041e-05,2]
[423000896,1779736246000,-6854.03,9.041e-05,2]
[423000894,1779736246000,-500.0,9.041e-05,2]
[423000899,1779736246000,-500.0,9.041e-05,2]
[423000892,1779736246000,-1098.72,9.041e-05,2]
[423000898,1779736246000,-747.78,9.041e-05,2]
[423000908,1779736246000,-531.05,9.041e-05,2]
[423000912,1779736246000,-500.0,9.041e-05,2]
[423000909,1779736246000,-1137.29,9.041e-05,2]
[423000906,1779736246000,-500.0,9.041e-05,2]
[423000911,1779736246000,-500.0,9.041e-05,2]
[423000910,1779736246000,-500.0,9.041e-05,2]
[423000924,1779736246000,-500.0,9.041e-05,2]
[423000914,1779736246000,-1002.27,9.041e-05,2]
[423000913,1779736246000,-1646.59,9.041e-05,2]
[423000915,1779736246000,-633.38,9.041e-05,2]
[423000918,1779736246000,-500.0,9.041e-05,2]
[423000916,1779736246000,-8849.36,9.041e-05,2]
[423000919,1779736246000,-3004.37,9.041e-05,2]
[423000920,1779736246000,-2877.52,9.041e-05,2]
[423000895,1779736246000,-1946.81,9.041e-05,2]
[423000907,1779736246000,-500.0,9.041e-05,2]
[423000889,1779736246000,-1771.12,9.041e-05,2]
[423000861,1779736246000,-322.93586196,9.041e-05,2]
[423000891,1779736246000,-667.09,9.041e-05,2]
[423000925,1779736246000,-554.25,9.041e-05,2]
[423000863,1779736246000,-500.0,9.041e-05,2]
[423000871,1779736246000,-500.0,9.041e-05,2]
[423000862,1779736246000,-500.0,9.041e-05,2]
[423000870,1779736246000,-500.0,9.041e-05,2]
[423000864,1779736246000,-718.08,9.041e-05,2]
[423000872,1779736246000,-500.0,9.041e-05,2]
[423000866,1779736246000,-1890.83,9.041e-05,2]
[423000867,1779736246000,-500.0,9.041e-05,2]
[423000865,1779736246000,-500.0,9.041e-05,2]
[423000869,1779736246000,-692.9101,9.041e-05,2]
[423000868,1779736246000,-500.0,9.041e-05,2]
[423000874,1779736246000,-500.0,9.041e-05,2]
[423000890,1779736246000,-1009.13,9.041e-05,2]
[423000883,1779736246000,-2731.12,9.041e-05,2]
[423000885,1779736246000,-500.0,9.041e-05,2]
[423000875,1779736246000,-500.0,9.041e-05,2]
[423000876,1779736246000,-500.0,9.041e-05,2]
[423000884,1779736246000,-500.0,9.041e-05,2]
[423000878,1779736246000,-591.23,9.041e-05,2]
[423000877,1779736246000,-1322.11,9.041e-05,2]
[423000881,1779736246000,-5767.46,9.041e-05,2]
[423000880,1779736246000,-2686.6,9.041e-05,2]
[423000882,1779736246000,-500.0,9.041e-05,2]
[423000879,1779736246000,-639.04797402,9.041e-05,2]
[423000886,1779736246000,-4828.86,9.041e-05,2]
[423000888,1779736246000,-500.0,9.041e-05,2]
[423000893,1779736246000,-266.02562041,9.041e-05,2]
[423000873,1779736246000,-500.0,9.041e-05,2]
[423000923,1779736246000,-1750.58,9.041e-05,2]
[423000986,1779736246000,-500.0,9.315e-05,2]
[423000921,1779736246000,-500.0,9.041e-05,2]
[423000959,1779736246000,-500.0,9.041e-05,2]
[423000958,1779736246000,-800.15,9.041e-05,2]
[423000961,1779736246000,-500.0,9.041e-05,2]
[423000962,1779736246000,-695.74,9.041e-05,2]
[423000964,1779736246000,-720.0,9.108e-05,2]
[423000965,1779736246000,-10000.0,9.123e-05,2]
[423000963,1779736246000,-500.0,9.041e-05,2]
[423000966,1779736246000,-2577.583882,9.129e-05,2]
[423000967,1779736246000,-151.45161275,9.193e-05,7]
[423000969,1779736246000,-181.35614913,9.193e-05,7]
[423000974,1779736246000,-220.38190346,9.265e-05,7]
[423000968,1779736246000,-167.8624141,9.193e-05,2]
[423000973,1779736246000,-165.02814644,9.265e-05,7]
[423000960,1779736246000,-2561.68,9.041e-05,2]
[423000971,1779736246000,-186.14003018,9.193e-05,2]
[423000972,1779736246000,-335.92591364,9.203e-05,2]
[423000976,1779736246000,-748.1812,9.315e-05,2]
[423000987,1779736246000,-1507.02,9.315e-05,2]
[423000979,1779736246000,-507.13,9.315e-05,2]
[423000975,1779736246000,-152.0,9.267e-05,7]
[423000927,1779736246000,-2295.01,9.041e-05,2]
[423000980,1779736246000,-500.0,9.315e-05,2]
[423000982,1779736246000,-500.0,9.315e-05,2]
[423000978,1779736246000,-184.7267,9.315e-05,2]
[423000984,1779736246000,-1439.59,9.315e-05,2]
[423000981,1779736246000,-500.0,9.315e-05,2]
[423000985,1779736246000,-642.86,9.315e-05,2]
[423000983,1779736246000,-730.66,9.315e-05,2]
[423000970,1779736246000,-173.91707914,9.193e-05,7]
[423000957,1779736246000,-4026.76,9.041e-05,2]
[423000977,1779736246000,-3032.4735,9.315e-05,2]
[423000956,1779736246000,-3943.56,9.041e-05,2]
[423000955,1779736246000,-653.19,9.041e-05,2]
[423000922,1779736246000,-2827.8,9.041e-05,2]
[423000926,1779736246000,-800.91,9.041e-05,2]
[423000929,1779736246000,-6163.87,9.041e-05,2]
[423000942,1779736246000,-500.0,9.041e-05,2]
[423000940,1779736246000,-1148.8,9.041e-05,2]
[423000941,1779736246000,-500.0,9.041e-05,2]
[423000938,1779736246000,-3010.38,9.041e-05,2]
[423000934,1779736246000,-526.02,9.041e-05,2]
[423000932,1779736246000,-1293.98,9.041e-05,2]
[423000930,1779736246000,-3626.12,9.041e-05,2]
[423000935,1779736246000,-207.6734297,9.041e-05,2]
[423000928,1779736246000,-3155.18,9.041e-05,2]
[423000937,1779736246000,-3009.2,9.041e-05,2]
[423000939,1779736246000,-500.0,9.041e-05,2]
[423000931,1779736246000,-8769.42,9.041e-05,2]
[423000936,1779736246000,-6204.19,9.041e-05,2]
[423000951,1779736246000,-1896.26,9.041e-05,2]
[423000950,1779736246000,-500.0,9.041e-05,2]
[423000952,1779736246000,-2797.95,9.041e-05,2]
[423000953,1779736246000,-10364.13,9.041e-05,2]
[423000945,1779736246000,-2442.15,9.041e-05,2]
[423000948,1779736246000,-516.92,9.041e-05,2]
[423000949,1779736246000,-2060.98,9.041e-05,2]
[423000946,1779736246000,-47206.1,9.041e-05,2]
[423000943,1779736246000,-2088.49852893,9.041e-05,2]
[423000954,1779736246000,-500.0,9.041e-05,2]
[423000944,1779736246000,-500.0,9.041e-05,2]
[423000947,1779736246000,-500.0,9.041e-05,2]
[423001013,1779736247000,-649.9525932,9.315e-05,2]
[423001014,1779736247000,-2024.18,9.315e-05,2]
[423001015,1779736247000,-1184.04,9.315e-05,2]
[423001018,1779736247000,-1439.16,9.315e-05,2]
[423001019,1779736247000,-500.0,9.315e-05,2]
[423001016,1779736247000,-683.75,9.315e-05,2]
[423001017,1779736247000,-778.66,9.315e-05,2]
[423001020,1779736247000,-500.0,9.315e-05,2]
[423001021,1779736247000,-500.0,9.315e-05,2]
[423001022,1779736247000,-500.0,9.315e-05,2]
[423001023,1779736247000,-2270.08,9.315e-05,2]
[423001030,1779736247000,-500.0,9.315e-05,2]
[423001031,1779736247000,-2034.88,9.315e-05,2]
[423001033,1779736247000,-500.0,9.315e-05,2]
[423001032,1779736247000,-886.37,9.315e-05,2]
[423001025,1779736247000,-500.0,9.315e-05,2]
[423001024,1779736247000,-2687.34,9.315e-05,2]
[423001027,1779736247000,-619.89,9.315e-05,2]
[423001029,1779736247000,-564.01,9.315e-05,2]
[423001012,1779736247000,-484.042256,9.315e-05,2]
[423001028,1779736247000,-500.0,9.315e-05,2]
[423001026,1779736247000,-546.67,9.315e-05,2]
[423001011,1779736247000,-2.4951508,9.315e-05,2]
[423000994,1779736247000,-500.0,9.315e-05,2]
[423001005,1779736247000,-500.0,9.315e-05,2]
[423001038,1779736247000,-500.0,9.315e-05,2]
[423000989,1779736247000,-500.0,9.315e-05,2]
[423000988,1779736247000,-500.0,9.315e-05,2]
[423000990,1779736247000,-526.95,9.315e-05,2]
[423000992,1779736247000,-50.20752017,9.315e-05,2]
[423000993,1779736247000,-449.79247983,9.315e-05,2]
[423000991,1779736247000,-500.0,9.315e-05,2]
[423000997,1779736247000,-266.98663585,9.315e-05,2]
[423000995,1779736247000,-500.0,9.315e-05,2]
[423000996,1779736247000,-233.01336415,9.315e-05,2]
[423000999,1779736247000,-193.06856588,9.315e-05,2]
[423001009,1779736247000,-500.0,9.315e-05,2]
[423000998,1779736247000,-871.63,9.315e-05,2]
[423001010,1779736247000,-999.61,9.315e-05,2]
[423001001,1779736247000,-993.56,9.315e-05,2]
[423001002,1779736247000,-472.38945728,9.315e-05,2]
[423001000,1779736247000,-306.93143412,9.315e-05,2]
[423001003,1779736247000,-27.61054272,9.315e-05,2]
[423001004,1779736247000,-500.0,9.315e-05,2]
[423001006,1779736247000,-500.0,9.315e-05,2]
[423001007,1779736247000,-500.0,9.315e-05,2]
[423001008,1779736247000,-572.09,9.315e-05,2]
[423001040,1779736247000,-718.7,9.315e-05,2]
[423001054,1779736247000,-500.0,9.315e-05,2]
[423001036,1779736247000,-500.0,9.315e-05,2]
[423001074,1779736247000,-667.09,9.315e-05,2]
[423001063,1779736247000,-2686.6,9.315e-05,2]
[423001061,1779736247000,-1322.11,9.315e-05,2]
[423001070,1779736247000,-1225.23,9.315e-05,2]
[423001071,1779736247000,-500.0,9.315e-05,2]
[423001068,1779736247000,-500.0,9.315e-05,2]
[423001066,1779736247000,-2731.12,9.315e-05,2]
[423001069,1779736247000,-4828.86,9.315e-05,2]
[423001067,1779736247000,-500.0,9.315e-05,2]
[423001065,1779736247000,-500.0,9.315e-05,2]
[423001075,1779736247000,-1098.72,9.315e-05,2]
[423001076,1779736247000,-500.0,9.315e-05,2]
[423001078,1779736247000,-3234.08072311,9.315e-05,2]
[423001077,1779736247000,-1946.81,9.315e-05,2]
[423001079,1779736247000,-2987.63384,9.315e-05,2]
[423001081,1779736247000,-632.31543689,9.315e-05,2]
[423001080,1779736247000,-5000.0,8.097e-05,2]
[423001082,1779736247000,-500.0,9.315e-05,2]
[423001084,1779736247000,-500.0,9.315e-05,2]
[423001083,1779736247000,-747.78,9.315e-05,2]
[423001034,1779736247000,-500.0,9.315e-05,2]
[423001073,1779736247000,-1009.13,9.315e-05,2]
[423001072,1779736247000,-1771.12,9.315e-05,2]
[423001064,1779736247000,-5767.46,9.315e-05,2]
[423001055,1779736247000,-261.40364311,9.315e-05,2]
[423001037,1779736247000,-500.0,9.315e-05,2]
[423001039,1779736247000,-1388.62,9.315e-05,2]
[423001041,1779736247000,-500.0,9.315e-05,2]
[423001047,1779736247000,-500.0,9.315e-05,2]
[423001045,1779736247000,-953.32,9.315e-05,2]
[423001042,1779736247000,-641.44,9.315e-05,2]
[423001062,1779736247000,-591.23,9.315e-05,2]
[423001046,1779736247000,-334.38033913,9.315e-05,2]
[423001044,1779736247000,-500.0,9.315e-05,2]
[423001043,1779736247000,-500.0,9.315e-05,2]
[423001049,1779736247000,-718.08,9.315e-05,2]
[423001035,1779736247000,-1490.73,9.315e-05,2]
[423001057,1779736247000,-500.0,9.315e-05,2]
[423001048,1779736247000,-500.0,9.315e-05,2]
[423001085,1779736247000,-71.38923767,9.315e-05,2]
[423001053,1779736247000,-500.0,9.315e-05,2]
[423001052,1779736247000,-428.49053664,9.315e-05,2]
[423001056,1779736247000,-500.0,9.315e-05,2]
[423001051,1779736247000,-1890.83,9.315e-05,2]
[423001058,1779736247000,-500.0,9.315e-05,2]
[423001059,1779736247000,-500.0,9.315e-05,2]
[423001050,1779736247000,-500.0,9.315e-05,2]
[423001060,1779736247000,-500.0,9.315e-05,2]
[423001097,1779736248000,-500.0,9.315e-05,2]
[423001091,1779736248000,-596.03,9.315e-05,2]
[423001092,1779736248000,-500.0,9.315e-05,2]
[423001093,1779736248000,-500.0,9.315e-05,2]
[423001094,1779736248000,-531.05,9.315e-05,2]
[423001086,1779736248000,-4063.44076233,9.315e-05,2]
[423001087,1779736248000,-1858.99,9.315e-05,2]
[423001090,1779736248000,-2922.24,9.315e-05,2]